fUSD/lending_fUSD_20250826
["ID","MTS","AMOUNT","RATE_DAILY","PERIOD"]
[381417832,1756188673162,-410.99712279,0.0001726,2]
[381417833,1756188673172,-400.0,0.0001726,2]
[381417834,1756188673182,-409.82,0.0001726,2]
[381417835,1756188673193,-400.0,0.0001726,2]
[381417836,1756188673203,-1055.35,0.0001726,2]
[381417837,1756188673212,-633.42,0.0001726,2]
[381417838,1756188673222,-508.67,0.0001726,2]
[381417839,1756188673232,-1161.92,0.0001726,2]
[381417840,1756188673241,-673.5,0.0001726,2]
[381417841,1756188673251,-538.97,0.0001726,2]
[381417842,1756188673261,-335.49833191,0.0001726,2]
[381417843,1756188673271,-400.0,0.0001726,2]
[381417844,1756188673281,-953.71,0.0001726,2]
[381417845,1756188673290,-400.0,0.0001726,2]
[381417846,1756188673299,-508.77,0.0001726,2]
[381417847,1756188673310,-400.0,0.0001726,2]
[381417848,1756188673319,-580.77,0.0001726,2]
[381417849,1756188673329,-400.0,0.0001726,2]
[381417850,1756188673339,-400.0,0.0001726,2]
[381417851,1756188673348,-400.0,0.0001726,2]
[381417852,1756188673359,-1384.6,0.0001726,2]
[381417853,1756188673368,-425.82,0.0001726,2]
[381417854,1756188673377,-561.44,0.0001726,2]
[381417855,1756188673387,-400.0,0.0001726,2]
[381417856,1756188673397,-519.74,0.0001726,2]
[381417857,1756188673407,-1703.78,0.0001726,2]
[381417858,1756188673416,-600.92,0.0001726,2]
[381417859,1756188673426,-463.24,0.0001726,2]
[381417860,1756188673436,-400.0,0.0001726,2]
[381417861,1756188673447,-922.72,0.0001726,2]
[381417862,1756188673457,-753.64,0.0001726,2]
[381417863,1756188673467,-400.0,0.0001726,2]
[381417864,1756188673476,-400.0,0.0001726,2]
[381417865,1756188673486,-741.08,0.0001726,2]
[381417866,1756188673495,-400.0,0.0001726,2]
[381417867,1756188673505,-400.0,0.0001726,2]
[381417868,1756188673514,-977.81,0.0001726,2]
[381417869,1756188673523,-400.0,0.0001726,2]
[381417870,1756188673534,-400.0,0.0001726,2]
[381417871,1756188673543,-400.0,0.0001726,2]
[381417872,1756188673552,-400.0,0.0001726,2]
[381417873,1756188673561,-432.49,0.0001726,2]
[381417874,1756188673571,-1104.01,0.0001726,2]
[381417875,1756188673579,-480.76,0.0001726,2]
[381417876,1756188673589,-1514.02,0.0001726,2]
[381417877,1756188673599,-400.0,0.0001726,2]
[381417878,1756188673611,-993.33,0.0001726,2]
[381417879,1756188673620,-888.13,0.0001726,2]
[381417880,1756188673630,-1774.3,0.0001726,2]
[381417881,1756188673639,-914.66,0.0001726,2]
[381417882,1756188673649,-797.75,0.0001726,2]
[381417883,1756188673658,-1037.93,0.0001726,2]
[381417884,1756188673667,-874.18,0.0001726,2]
[381417885,1756188673676,-400.0,0.0001726,2]
[381417886,1756188673685,-400.0,0.0001726,2]
[381417887,1756188673694,-658.41,0.0001726,2]
[381417888,1756188673703,-427.84,0.0001726,2]
[381417889,1756188673712,-400.0,0.0001726,2]
[381417890,1756188673721,-976.77,0.0001726,2]
[381417891,1756188673730,-1095.3,0.0001726,2]
[381417892,1756188673739,-400.0,0.0001726,2]
[381417893,1756188673748,-400.0,0.0001726,2]
[381417894,1756188673757,-4669.56,0.0001726,2]
[381417895,1756188673766,-582.07,0.0001726,2]
[381417896,1756188673775,-1250.59,0.0001726,2]
[381417897,1756188673785,-523.65,0.0001726,2]
[381417898,1756188673795,-400.0,0.0001726,2]
[381417899,1756188673804,-400.0,0.0001726,2]
[381417900,1756188673813,-1389.77,0.0001726,2]
[381417901,1756188673822,-430.8,0.0001726,2]
[381417902,1756188673832,-471.79,0.0001726,2]
[381417903,1756188673841,-400.0,0.0001726,2]
[381417904,1756188673850,-400.0,0.0001726,2]
[381417905,1756188673862,-400.0,0.0001726,2]
[381417906,1756188673871,-655.91,0.0001726,2]
[381417907,1756188673880,-1340.13,0.0001726,2]
[381417908,1756188673890,-2408.03,0.0001726,2]
[381417909,1756188673899,-400.0,0.0001726,2]
[381417910,1756188673908,-580.03,0.0001726,2]
[381417911,1756188673917,-601.15,0.0001726,2]
[381417912,1756188673927,-511.98,0.0001726,2]
[381417913,1756188673936,-944.56,0.0001726,2]
[381417914,1756188673946,-423.25,0.0001726,2]
[381417915,1756188673955,-428.27946764,0.0001726,2]
[381417916,1756188673964,-742.25,0.0001726,2]
[381417917,1756188673974,-400.0,0.0001726,2]
[381417918,1756188673983,-1049.81,0.0001726,2]
[381417919,1756188673992,-676.92,0.0001726,2]
[381417920,1756188674001,-525.29,0.0001726,2]
[381417921,1756188674011,-1250.96,0.0001726,2]
[381417922,1756188674020,-400.0,0.0001726,2]
[381417923,1756188674029,-793.89,0.0001726,2]
[381417924,1756188674038,-711.72,0.0001726,2]
[381417925,1756188674048,-1464.57,0.0001726,2]
[381417926,1756188674057,-550.69,0.0001726,2]
[381417927,1756188674067,-688.73,0.0001726,2]
[381417928,1756188674076,-625.17,0.0001726,2]
[381417929,1756188674085,-400.0,0.0001726,2]
[381417930,1756188674094,-999.1,0.0001726,2]
[381417931,1756188674105,-776.78,0.0001726,2]
[381417932,1756188674115,-456.85,0.0001726,2]
[381417933,1756188674125,-832.94,0.0001726,2]
[381417934,1756188674134,-400.0,0.0001726,2]
[381417935,1756188674145,-1073.92,0.0001726,2]
[381417936,1756188674156,-400.0,0.0001726,2]
[381417937,1756188674165,-400.0,0.0001726,2]
[381417938,1756188674175,-602.58,0.0001726,2]
[381417939,1756188674185,-400.0,0.0001726,2]
[381417940,1756188674195,-4578.51,0.0001726,2]
[381417941,1756188674206,-671.62,0.0001726,2]
[381417942,1756188674215,-527.35,0.0001726,2]
[381417943,1756188674226,-494.57,0.0001726,2]
[381417944,1756188674236,-605.34,0.0001726,2]
[381417945,1756188674246,-683.34,0.0001726,2]
[381417946,1756188674255,-936.87,0.0001726,2]
[381417947,1756188674266,-876.76,0.0001726,2]
[381417948,1756188674276,-596.89,0.0001726,2]
[381417949,1756188674287,-664.76,0.0001726,2]
[381417950,1756188674297,-866.12,0.0001726,2]
[381417951,1756188674307,-601.14,0.0001726,2]
[381417952,1756188674317,-1173.98,0.0001726,2]
[381417953,1756188674327,-729.62,0.0001726,2]
[381417954,1756188674337,-622.4,0.0001726,2]
[381417955,1756188674348,-1009.02,0.0001726,2]
[381417956,1756188674360,-1274.93,0.0001726,2]
[381417957,1756188674370,-743.53,0.0001726,2]
[381417958,1756188674380,-513.0,0.0001726,2]
[381417959,1756188674390,-439.35,0.0001726,2]
[381417960,1756188674400,-1393.5,0.0001726,2]
[381417961,1756188674410,-469.3,0.0001726,2]
[381417962,1756188674420,-1170.91,0.0001726,2]
[381417963,1756188674430,-922.05,0.0001726,2]
[381417964,1756188674440,-796.98,0.0001726,2]
[381417965,1756188674451,-1157.98,0.0001726,2]
[381417966,1756188674461,-400.0,0.0001726,2]
[381417967,1756188674471,-400.0,0.0001726,2]
[381417968,1756188674481,-795.8,0.0001726,2]
[381417969,1756188674491,-593.55,0.0001726,2]
[381417970,1756188674500,-400.0,0.0001726,2]
[381417971,1756188674511,-885.9,0.0001726,2]
[381417972,1756188674522,-687.44,0.0001726,2]
[381417973,1756188674532,-1057.57,0.0001726,2]
[381417974,1756188674542,-400.0,0.0001726,2]
[381417975,1756188674552,-866.88,0.0001726,2]
[381417976,1756188674562,-594.34,0.0001726,2]
[381417977,1756188674572,-516.0,0.0001726,2]
[381417978,1756188674582,-400.0,0.0001726,2]
[381417979,1756188674592,-400.0,0.0001726,2]
[381417980,1756188674603,-400.0,0.0001726,2]
[381417981,1756188674613,-400.0,0.0001726,2]
[381417982,1756188674623,-587.33,0.0001726,2]
[381417983,1756188674633,-286.98,0.0001726,2]
[381417984,1756188674643,-825.85,0.0001726,2]
[381417985,1756188674653,-400.0,0.0001726,2]
[381417986,1756188674662,-744.08,0.0001726,2]
[381417987,1756188674672,-622.19,0.0001726,2]
[381417988,1756188674683,-1319.13,0.0001726,2]
[381417989,1756188674694,-1281.93,0.0001726,2]
[381417990,1756188674704,-599.18,0.0001726,2]
[381417991,1756188674714,-400.0,0.0001726,2]
[381417992,1756188674723,-517.15,0.0001726,2]
[381417993,1756188674735,-1950.58,0.0001726,2]
[381417994,1756188674745,-705.07,0.0001726,2]
[381417995,1756188674755,-828.82,0.0001726,2]
[381417996,1756188674765,-1003.41,0.0001726,2]
[381417997,1756188674775,-870.87,0.0001726,2]
[381417998,1756188674785,-544.594278,0.0001726,2]
[381417999,1756188674795,-400.0,0.0001726,2]
[381418000,1756188674805,-400.0,0.0001726,2]
[381418001,1756188674815,-1566.3,0.0001726,2]
[381418002,1756188674825,-544.33,0.0001726,2]
[381418003,1756188674835,-661.34,0.0001726,2]
[381418004,1756188674845,-457.43,0.0001726,2]
[381418005,1756188674854,-485.02712468,0.0001726,2]
[381418006,1756188674864,-1480.99,0.0001726,2]
[381418007,1756188674874,-724.63,0.0001726,2]
[381418008,1756188674884,-410.09,0.0001726,2]
[381418009,1756188674894,-643.97,0.0001726,2]
[381418010,1756188674904,-400.0,0.0001726,2]
[381418011,1756188674914,-1320.14,0.0001726,2]
[381418012,1756188674923,-866.64,0.0001726,2]
[381418013,1756188674933,-400.0,0.0001726,2]
[381418014,1756188674943,-400.0,0.0001726,2]
[381418015,1756188674953,-400.0,0.0001726,2]
[381418016,1756188674963,-1290.57,0.0001726,2]
[381418017,1756188674973,-614.16,0.0001726,2]
[381418018,1756188674984,-400.0,0.0001726,2]
[381418019,1756188674994,-501.9,0.0001726,2]
[381418020,1756188675004,-400.0,0.0001726,2]
[381418021,1756188675014,-764.97,0.0001726,2]
[381418022,1756188675024,-893.64,0.0001726,2]
[381418023,1756188675034,-1356.06,0.0001726,2]
[381418024,1756188675044,-1141.96,0.0001726,2]
[381418025,1756188675055,-614.01,0.0001726,2]
[381418026,1756188675064,-1306.59,0.0001726,2]
[381418027,1756188675073,-548.8,0.0001726,2]
[381418028,1756188675083,-400.0,0.0001726,2]
[381418029,1756188675092,-400.0,0.0001726,2]
[381418030,1756188675102,-1048.45,0.0001726,2]
[381418031,1756188675115,-400.0,0.0001726,2]
[381418032,1756188675126,-460.86,0.0001726,2]
[381418033,1756188675135,-467.97,0.0001726,2]
[381418034,1756188675144,-891.55,0.0001726,2]
[381418035,1756188675153,-941.06,0.0001726,2]
[381418036,1756188675163,-356.35495763,0.0001726,2]
[381418037,1756188675173,-673.66,0.0001726,2]
[381418038,1756188675183,-755.09,0.0001726,2]
[381418039,1756188675192,-1022.09,0.0001726,2]
[381418040,1756188675202,-400.0,0.0001726,2]
[381418041,1756188675211,-400.0,0.0001726,2]
[381418042,1756188675220,-1021.54,0.0001726,2]
[381418043,1756188675230,-595.04,0.0001726,2]
[381418044,1756188675240,-400.0,0.0001726,2]
[381418045,1756188675249,-228.7,0.0001726,2]
[381418046,1756188675259,-400.0,0.0001726,2]
[381418047,1756188675269,-400.0,0.0001726,2]
[381418048,1756188675279,-570.85,0.0001726,2]
[381418049,1756188675289,-419.43,0.0001726,2]
[381418050,1756188675301,-2493.06,0.0001726,2]
[381418051,1756188675312,-1121.32,0.0001726,2]
[381418052,1756188675322,-400.0,0.0001726,2]
[381418053,1756188675333,-785.58,0.0001726,2]
[381418054,1756188675343,-746.36,0.0001726,2]
[381418055,1756188675355,-1468.69,0.0001726,2]
[381418056,1756188675364,-822.2,0.0001726,2]
[381418057,1756188675374,-1258.5,0.0001726,2]
[381418058,1756188675383,-151.0,0.0001726,2]
[381418059,1756188675393,-220.92,0.0001726,2]
[381418060,1756188675403,-1204.79,0.0001726,2]
[381418061,1756188675412,-400.0,0.0001726,2]
[381418062,1756188675422,-587.75,0.0001726,2]
[381418063,1756188675431,-400.0,0.0001726,2]
[381418064,1756188675441,-1098.61,0.0001726,2]
[381418065,1756188675451,-1174.63,0.0001726,2]
[381418066,1756188675460,-400.0,0.0001726,2]
[381418067,1756188675470,-151.0,0.0001726,2]
[381418068,1756188675479,-442.42,0.0001726,2]
[381418069,1756188675489,-151.0,0.0001726,2]
[381418070,1756188675499,-400.0,0.0001726,2]
[381418071,1756188675509,-681.08,0.0001726,2]
[381418072,1756188675519,-151.0,0.0001726,2]
[381418073,1756188675529,-1100.12,0.0001726,2]
[381418074,1756188675538,-1207.86,0.0001726,2]
[381418075,1756188675548,-1279.13,0.0001726,2]
[381418076,1756188675558,-653.67,0.0001726,2]
[381418077,1756188675568,-400.0,0.0001726,2]
[381418078,1756188675577,-400.0,0.0001726,2]
[381418079,1756188675587,-400.0,0.0001726,2]
[381418080,1756188675597,-1199.3,0.0001726,2]
[381418081,1756188675607,-151.0,0.0001726,2]
[381418082,1756188675617,-400.0,0.0001726,2]
[381418083,1756188675627,-400.0,0.0001726,2]
[381418084,1756188675636,-795.5,0.0001726,2]
[381418085,1756188675646,-1204.7,0.0001726,2]
[381418086,1756188675656,-400.0,0.0001726,2]
[381418087,1756188675666,-616.8,0.0001726,2]
[381418088,1756188675676,-471.73,0.0001726,2]
[381418089,1756188675686,-530.57,0.0001726,2]
[381418090,1756188675695,-435.11,0.0001726,2]
[381418091,1756188675705,-460.31,0.0001726,2]
[381418092,1756188675715,-400.0,0.0001726,2]
[381418093,1756188675724,-405.93020567,0.0001726,2]
[381418094,1756188675734,-151.0,0.0001726,2]
[381418095,1756188675744,-400.0,0.0001726,2]
[381418096,1756188675753,-151.0,0.0001726,2]
[381418097,1756188675763,-400.0,0.0001726,2]
[381418098,1756188675772,-227.055424,0.0001726,2]
[381418099,1756188675782,-400.0,0.0001726,2]
[381418100,1756188675791,-425.82,0.0001726,2]
[381418101,1756188675801,-400.0,0.0001726,2]
[381418102,1756188675811,-400.0,0.0001726,2]
[381418103,1756188675821,-1296.51,0.0001726,2]
[381418104,1756188675830,-400.0,0.0001726,2]
[381418105,1756188675840,-400.0,0.0001726,2]
[381418106,1756188675850,-551.39,0.0001726,2]
[381418107,1756188675861,-400.0,0.0001726,2]
[381418108,1756188675871,-832.46,0.0001726,2]
[381418109,1756188675881,-633.56,0.0001726,2]
[381418110,1756188675890,-400.0,0.0001726,2]
[381418111,1756188675900,-767.01,0.0001726,2]
[381418112,1756188675911,-1373.34,0.0001726,2]
[381418113,1756188675921,-400.0,0.0001726,2]
[381418114,1756188675931,-1847.54,0.0001726,2]
[381418115,1756188675940,-406.49,0.0001726,2]
[381418116,1756188675951,-1005.05,0.0001726,2]
[381418117,1756188675960,-631.76,0.0001726,2]
[381418118,1756188676103,-400.0,0.0001726,2]
[381418119,1756188676116,-400.0,0.0001726,2]
[381418120,1756188676126,-1137.85,0.0001726,2]
[381418121,1756188676137,-459.5,0.0001726,2]
[381418122,1756188676148,-400.0,0.0001726,2]
[381418123,1756188676159,-400.0,0.0001726,2]
[381418124,1756188676171,-400.0,0.0001726,2]
[381418125,1756188676181,-297.25907602,0.0001726,2]
[381418126,1756188676194,-400.0,0.0001726,2]
[381418127,1756188676205,-400.0,0.0001726,2]
[381418128,1756188676215,-1290.3,0.0001726,2]
[381418129,1756188676226,-1138.01,0.0001726,2]
[381418130,1756188676236,-400.0,0.0001726,2]
[381418131,1756188676246,-414.49,0.0001726,2]
[381418132,1756188676256,-400.0,0.0001726,2]
[381418133,1756188676267,-719.63,0.0001726,2]
[381418134,1756188676277,-400.0,0.0001726,2]
[381418135,1756188676288,-151.0,0.0001726,2]
[381418136,1756188676298,-400.0,0.0001726,2]
[381418137,1756188676308,-771.06,0.0001726,2]
[381418138,1756188676320,-498.18,0.0001726,2]
[381418139,1756188676330,-1617.06,0.0001726,2]
[381418140,1756188676341,-400.0,0.0001726,2]
[381418141,1756188676352,-400.0,0.0001726,2]
[381418142,1756188676363,-400.0,0.0001726,2]
[381418143,1756188676373,-845.72,0.0001726,2]
[381418144,1756188676383,-423.95,0.0001726,2]
[381418145,1756188676395,-400.0,0.0001726,2]
[381418146,1756188676405,-400.0,0.0001726,2]
[381418147,1756188676415,-511.5,0.0001726,2]
[381418148,1756188676426,-211.53103291,0.0001726,2]
[381418149,1756188676437,-942.52,0.0001726,2]
[381418150,1756188676447,-151.0,0.0001726,2]
[381418151,1756188676458,-489.77,0.0001726,2]
[381418152,1756188676469,-784.75,0.0001726,2]
[381418153,1756188676479,-400.0,0.0001726,2]
[381418154,1756188676489,-566.99,0.0001726,2]
[381418155,1756188676501,-400.0,0.0001726,2]
[381418156,1756188676511,-1059.62,0.0001726,2]
[381418157,1756188676522,-151.0,0.0001726,2]
[381418158,1756188676533,-910.29,0.0001726,2]
[381418159,1756188676544,-1672.39,0.0001726,2]
[381418160,1756188676555,-904.63,0.0001726,2]
[381418161,1756188676565,-1056.67,0.0001726,2]
[381418162,1756188676576,-1517.59,0.0001726,2]
[381418163,1756188676585,-934.71,0.0001726,2]
[381418164,1756188676596,-151.0,0.0001726,2]
[381418165,1756188676606,-400.0,0.0001726,2]
[381418166,1756188676616,-1296.24,0.0001726,2]
[381418167,1756188676626,-264.06199,0.0001726,2]
[381418168,1756188676636,-400.0,0.0001726,2]
[381418169,1756188676646,-400.0,0.0001726,2]
[381418170,1756188676656,-705.15,0.0001726,2]
[381418171,1756188676666,-598.64,0.0001726,2]
[381418172,1756188676676,-434.92,0.0001726,2]
[381418173,1756188676686,-400.0,0.0001726,2]
[381418174,1756188676696,-1497.08,0.0001726,2]
[381418175,1756188676705,-1265.34,0.0001726,2]
[381418176,1756188676715,-833.83,0.0001726,2]
[381418177,1756188676725,-1062.65,0.0001726,2]
[381418178,1756188676734,-658.6,0.0001726,2]
[381418179,1756188676744,-1193.65,0.0001726,2]
[381418180,1756188676754,-490.14,0.0001726,2]
[381418181,1756188676763,-857.37,0.0001726,2]
[381418182,1756188676773,-401.36,0.0001726,2]
[381418183,1756188676783,-621.71,0.0001726,2]
[381418184,1756188676792,-1065.51,0.0001726,2]
[381418185,1756188676802,-400.0,0.0001726,2]
[381418186,1756188676814,-400.0,0.0001726,2]
[381418187,1756188676824,-605.5,0.0001726,2]
[381418188,1756188676836,-400.0,0.0001726,2]
[381418189,1756188676846,-400.0,0.0001726,2]
[381418190,1756188676856,-1019.9,0.0001726,2]
[381418191,1756188676865,-400.0,0.0001726,2]
[381418192,1756188676875,-629.51,0.0001726,2]
[381418193,1756188676885,-718.24,0.0001726,2]
[381418194,1756188676895,-459.42779588,0.0001726,2]
[381418195,1756188676905,-829.91,0.0001726,2]
[381418196,1756188676915,-402.84,0.0001726,2]
[381418197,1756188676924,-739.42,0.0001726,2]
[381418198,1756188676934,-824.59,0.0001726,2]
[381418199,1756188676944,-456.36,0.0001726,2]
[381418200,1756188676954,-708.33,0.0001726,2]
[381418201,1756188676963,-918.72,0.0001726,2]
[381418202,1756188676974,-749.3,0.0001726,2]
[381418203,1756188676984,-400.0,0.0001726,2]
[381418204,1756188676993,-949.48,0.0001726,2]
[381418205,1756188677003,-151.0,0.0001726,2]
[381418206,1756188677013,-400.0,0.0001726,2]
[381418207,1756188677024,-1484.68,0.0001726,2]
[381418208,1756188677035,-1183.69,0.0001726,2]
[381418209,1756188677047,-586.05,0.0001726,2]
[381418210,1756188677057,-629.56,0.0001726,2]
[381418211,1756188677067,-1064.5,0.0001726,2]
[381418212,1756188677076,-589.05,0.0001726,2]
[381418213,1756188677086,-707.54,0.0001726,2]
[381418214,1756188677096,-400.0,0.0001726,2]
[381418215,1756188677107,-400.0,0.0001726,2]
[381418216,1756188677120,-954.82,0.0001726,2]
[381418217,1756188677130,-680.13,0.0001726,2]
[381418218,1756188677140,-565.91,0.0001726,2]
[381418219,1756188677150,-400.0,0.0001726,2]
[381418220,1756188677160,-1016.41,0.0001726,2]
[381418221,1756188677169,-611.54,0.0001726,2]
[381418222,1756188677178,-151.0,0.0001726,2]
[381418223,1756188677188,-900.88,0.0001726,2]
[381418224,1756188677199,-485.19,0.0001726,2]
[381418225,1756188677209,-163.354199,0.0001726,2]
[381418226,1756188677219,-1267.55,0.0001726,2]
[381418227,1756188677228,-1961.06,0.0001726,2]
[381418228,1756188677238,-400.0,0.0001726,2]
[381418229,1756188677247,-400.0,0.0001726,2]
[381418230,1756188677256,-400.0,0.0001726,2]
[381418231,1756188677267,-1231.45,0.0001726,2]
[381418232,1756188677276,-400.0,0.0001726,2]
[381418233,1756188677286,-1479.0,0.0001726,2]
[381418234,1756188677295,-488.59,0.0001726,2]
[381418235,1756188677305,-538.7,0.0001726,2]
[381418236,1756188677315,-1170.29,0.0001726,2]
[381418237,1756188677325,-400.0,0.0001726,2]
[381418238,1756188677334,-494.21,0.0001726,2]
[381418239,1756188677346,-630.62,0.0001726,2]
[381418240,1756188677357,-431.95,0.0001726,2]
[381418241,1756188677367,-400.0,0.0001726,2]
[381418242,1756188677377,-400.0,0.0001726,2]
[381418243,1756188677387,-400.0,0.0001726,2]
[381418244,1756188677396,-151.0,0.0001726,2]
[381418245,1756188677405,-1973.21,0.0001726,2]
[381418246,1756188677415,-413.95,0.0001726,2]
[381418247,1756188677424,-654.42,0.0001726,2]
[381418248,1756188677433,-432.07,0.0001726,2]
[381418249,1756188677443,-151.0,0.0001726,2]
[381418250,1756188677452,-1101.41,0.0001726,2]
[381418251,1756188677462,-458.63,0.0001726,2]
[381418252,1756188677471,-400.49,0.0001726,2]
[381418253,1756188677481,-400.0,0.0001726,2]
[381418254,1756188677490,-1140.81,0.0001726,2]
[381418255,1756188677500,-1541.5,0.0001726,2]
[381418256,1756188677509,-400.0,0.0001726,2]
[381418257,1756188677519,-677.53,0.0001726,2]
[381418258,1756188677528,-586.1,0.0001726,2]
[381418259,1756188677538,-400.0,0.0001726,2]
[381418260,1756188677547,-400.0,0.0001726,2]
[381418261,1756188677557,-151.0,0.0001726,2]
[381418262,1756188677566,-954.19,0.0001726,2]
[381418263,1756188677576,-151.0,0.0001726,2]
[381418264,1756188677587,-196.81550678,0.0001726,2]
[381418265,1756188677596,-992.43,0.0001726,2]
[381418266,1756188677606,-151.0,0.0001726,2]
[381418267,1756188677616,-400.0,0.0001726,2]
[381418268,1756188677627,-400.0,0.0001726,2]
[381418269,1756188677637,-986.85,0.0001726,2]
[381418270,1756188677646,-174.366558,0.0001726,2]
[381418271,1756188677658,-1259.42,0.0001726,2]
[381418272,1756188677670,-1152.15,0.0001726,2]
[381418273,1756188677680,-400.0,0.0001726,2]
[381418274,1756188677689,-241.50451758,0.0001726,2]
[381418275,1756188677699,-400.0,0.0001726,2]
[381418276,1756188677708,-400.0,0.0001726,2]
[381418277,1756188677717,-624.06,0.0001726,2]
[381418278,1756188677727,-400.0,0.0001726,2]
[381418279,1756188677736,-1225.96,0.0001726,2]
[381418280,1756188677745,-400.0,0.0001726,2]
[381418281,1756188677755,-557.75,0.0001726,2]
[381418282,1756188677764,-601.53,0.0001726,2]
[381418283,1756188677773,-595.95,0.0001726,2]
[381418284,1756188677783,-151.0,0.0001726,2]
[381418285,1756188677792,-594.6,0.0001726,2]
[381418286,1756188677802,-1400.87,0.0001726,2]
[381418287,1756188677811,-936.73,0.0001726,2]
[381418288,1756188677820,-400.0,0.0001726,2]
[381418289,1756188677829,-508.97745963,0.0001726,2]
[381418290,1756188677839,-448.8,0.0001726,2]
[381418291,1756188677848,-766.85,0.0001726,2]
[381418292,1756188677858,-400.0,0.0001726,2]
[381418293,1756188677867,-649.45,0.0001726,2]
[381418294,1756188677877,-1134.88,0.0001726,2]
[381418295,1756188677889,-400.0,0.0001726,2]
[381418296,1756188677900,-400.0,0.0001726,2]
[381418297,1756188677910,-983.19,0.0001726,2]
[381418298,1756188677921,-1049.28,0.0001726,2]
[381418299,1756188677932,-684.2,0.0001726,2]
[381418300,1756188677942,-400.0,0.0001726,2]
[381418301,1756188677952,-903.72,0.0001726,2]
[381418302,1756188677963,-786.52,0.0001726,2]
[381418303,1756188677973,-1536.68,0.0001726,2]
[381418304,1756188677983,-400.0,0.0001726,2]
[381418305,1756188677992,-400.0,0.0001726,2]
[381418306,1756188678002,-678.27,0.0001726,2]
[381418307,1756188678012,-1776.46,0.0001726,2]
[381418308,1756188678021,-902.73,0.0001726,2]
[381418309,1756188678031,-774.4,0.0001726,2]
[381418310,1756188678040,-400.0,0.0001726,2]
[381418311,1756188678050,-538.35,0.0001726,2]
[381418312,1756188678059,-777.96,0.0001726,2]
[381418313,1756188678069,-400.0,0.0001726,2]
[381418314,1756188678078,-923.07,0.0001726,2]
[381418315,1756188678088,-400.0,0.0001726,2]
[381418316,1756188678098,-400.0,0.0001726,2]
[381418317,1756188678108,-400.0,0.0001726,2]
[381418318,1756188678125,-400.0,0.0001726,2]
[381418319,1756188678135,-1061.87,0.0001726,2]
[381418320,1756188678145,-516.5,0.0001726,2]
[381418321,1756188678154,-400.0,0.0001726,2]
[381418322,1756188678164,-903.27,0.0001726,2]
[381418323,1756188678174,-502.53,0.0001726,2]
[381418324,1756188678183,-486.0,0.0001726,2]
[381418325,1756188678194,-1120.95,0.0001726,2]
[381418326,1756188678203,-780.92,0.0001726,2]
[381418327,1756188678214,-826.18,0.0001726,2]
[381418328,1756188678223,-400.0,0.0001726,2]
[381418329,1756188678233,-400.0,0.0001726,2]
[381418330,1756188678243,-520.37,0.0001726,2]
[381418331,1756188678253,-783.13,0.0001726,2]